bitfinex-derivatives/quotes_ETHF0:USTF0_20250905
["timestamp","ask_amount","ask_price","bid_price","bid_amount"]
[1757052344338,1.15538324,4337.7,4337.6,0.7029]
[1757052344545,1.35028324,4337.7,4337.6,0.7029]
[1757052345645,0.84788324,4338.0,4337.9,0.7029]
[1757052345842,1.35028324,4338.0,4337.9,0.7029]
[1757052347444,0.6988,4338.3,4338.2,0.7029]
[1757052349741,0.6988,4338.3,4338.2,0.4956]
[1757052350541,1.35028324,4338.3,4338.2,0.4956]
[1757052350747,0.6988,4338.3,4338.2,0.4956]
[1757052350949,1.35028324,4338.3,4338.2,0.4956]
[1757052354248,1.35028324,4338.3,4338.2,0.6975]
[1757052354848,0.1152,4338.5,4338.3,0.3087]
[1757052355053,0.3269,4338.5,4338.4,0.4158]
[1757052355246,0.5165,4338.5,4338.4,0.7245]
[1757052357850,0.72,4338.5,4338.4,0.7245]
[1757052359850,0.1152,4338.7,4338.6,0.7245]
[1757052360056,0.5165,4338.7,4338.6,0.7245]
[1757052360355,0.72,4338.7,4338.6,0.7245]
[1757052361152,0.4152,4338.7,4338.3,3.2078]
[1757052361355,0.4152,4338.7,4337.0,40.9232]
[1757052361356,1.37148324,4338.4,4338.2,0.3087]
[1757052361557,1.37148324,4338.4,4338.1,0.232]
[1757052361558,1.06668324,4338.4,4338.3,0.4158]
[1757052361858,1.06668324,4338.4,4338.3,0.7245]
[1757052362054,1.37148324,4338.4,4338.3,0.7245]
[1757052363848,1.37148324,4338.4,4338.0,0.53987]
[1757052363849,1.06668324,4338.4,4338.1,0.3087]
[1757052364058,0.72,4338.1,4338.0,0.3389]
[1757052364358,0.72,4338.1,4338.0,0.2139]
[1757052364560,0.72,4338.1,4338.0,0.5226]
[1757052364759,0.72,4337.8,4337.7,3.2078]
[1757052364960,1.37148324,4337.8,4337.7,3.2078]
[1757052366563,1.37148324,4337.8,4337.7,3.5165]
[1757052367465,1.37148324,4337.8,4337.7,3.7304]
[1757052368164,1.37148324,4337.8,4337.7,3.9323]
[1757052371568,0.65148324,4338.1,4337.7,4.3472]
[1757052371769,0.2117,4338.4,4338.3,0.3087]
[1757052371967,0.76668324,4338.6,4338.5,0.8495]
[1757052372166,0.65148324,4338.6,4338.5,0.8495]
[1757052372767,0.86318324,4338.6,4338.5,0.8495]
[1757052372966,1.16798324,4338.6,4338.5,0.8495]
[1757052373163,1.37148324,4338.6,4338.5,0.8495]
[1757052373672,1.37148324,4338.6,4338.5,0.7245]
[1757052374062,1.37148324,4338.6,4338.5,0.8495]
[1757052374763,1.06668324,4338.6,4338.5,0.8495]
[1757052374973,1.37148324,4338.6,4338.5,0.8495]
[1757052375575,0.72,4338.6,4338.5,0.8495]
[1757052377474,0.72,4338.6,4338.5,0.7245]
[1757052390085,0.2117,4338.6,4338.5,0.8417]
[1757052390380,3.323,4338.8,4338.7,0.4164]
[1757052390581,0.232,4339.2,4338.7,0.83121]
[1757052390879,0.7379,4339.2,4339.1,0.7359]
[1757052391083,0.9469,4339.2,4339.1,0.7359]
[1757052396986,0.7379,4339.2,4339.1,0.7359]
[1757052398090,0.9469,4339.2,4339.1,0.7359]
[1757052402891,0.9469,4339.2,4339.1,0.5274]
[1757052403096,0.7149,4338.8,4338.7,0.5274]
[1757052403290,1.50910849,4338.8,4338.7,0.75787]
[1757052403691,1.50910849,4338.8,4338.7,0.5274]
[1757052403993,1.50910849,4338.8,4338.7,0.7359]
[1757052407992,1.50910849,4338.8,4338.7,3.9437]
[1757052409895,1.29290849,4338.8,4338.7,3.9437]
[1757052410696,1.50180849,4338.8,4338.7,3.9437]
[1757052418702,0.79420849,4338.9,4338.8,0.3097]
[1757052418901,0.79420849,4338.9,4338.8,0.7239]
[1757052420198,0.99190849,4338.9,4338.8,0.7239]
[1757052420403,1.28760849,4338.9,4338.8,0.7239]
[1757052422305,0.1152,4339.0,4338.9,0.3097]
[1757052422597,0.4934,4340.0,4339.9,0.4142]
[1757052422790,0.4934,4340.0,4339.9,0.7239]
[1757052423195,0.7023,4340.0,4339.9,0.7239]
[1757052426104,0.1977,4340.0,4339.9,0.7239]
[1757052429700,0.4934,4340.0,4339.9,0.7239]
[1757052430004,0.7023,4340.0,4339.9,0.7239]
[1757052430702,0.8299,4340.0,4339.9,0.5144]
[1757052432608,0.7023,4340.0,4339.9,0.7239]
[1757052432902,0.4066,4340.0,4339.9,0.7239]
[1757052433107,0.79420849,4340.1,4340.0,0.845]
[1757052433499,0.1276,4342.5,4340.6,0.3097]
[1757052433500,0.79420849,4340.8,4340.6,0.3097]
[1757052433700,0.99190849,4340.8,4340.7,0.7239]
[1757052434503,1.28760849,4340.8,4340.7,0.7239]
[1757052435011,0.79420849,4341.2,4341.0,0.845]
[1757052435602,1.15285175,4341.1,4341.0,0.845]
[1757052436007,3.4398,4341.6,4341.0,5.07535999]
[1757052436008,3.2078,4341.6,4341.0,5.07535999]
[1757052436205,0.2957,4342.3,4341.9,0.4145]
[1757052436504,0.2957,4342.3,4341.1,37.07145]
[1757052436505,0.7023,4342.3,4342.2,3.2078]
[1757052436706,0.5342,4342.0,4341.9,0.235]
[1757052437006,0.5342,4342.0,4341.9,3.2078]
[1757052437403,0.8299,4342.0,4341.9,3.2078]
[1757052437608,1.48135175,4342.0,4341.9,3.2078]
[1757052437804,0.8299,4342.0,4341.9,3.2078]
[1757052438006,0.2957,4342.0,4341.9,3.2078]
[1757052438901,0.2957,4342.0,4341.9,3.51569133]
[1757052439310,0.4128,4342.0,4341.9,3.51569133]
[1757052439705,0.6261,4342.0,4341.9,3.51569133]
[1757052439904,0.8196,4342.0,4341.9,3.51569133]
[1757052440112,0.8196,4342.0,4341.9,3.75069133]
[1757052440411,0.4128,4342.0,4341.9,3.75069133]
[1757052441708,0.6261,4342.0,4341.9,3.75069133]
[1757052442807,0.8196,4342.0,4341.9,3.51569133]
[1757052443116,1.47105175,4342.0,4341.9,3.75069133]
[1757052443416,1.47105175,4342.0,4341.9,3.51569133]
[1757052444312,0.4128,4342.0,4341.9,3.51569133]
[1757052446117,0.4128,4342.0,4341.9,3.52351302]
[1757052446715,1.47105175,4342.0,4341.9,3.52351302]
[1757052447616,1.47105175,4342.0,4341.9,0.31571302]
[1757052447813,0.1171,4341.5,4341.4,3.2078]
[1757052448016,1.48415175,4341.5,4341.4,3.2078]
[1757052450011,0.8327,4341.5,4341.4,3.2078]
[1757052450220,0.6392,4341.5,4341.4,3.2078]
[1757052450813,0.8327,4341.5,4341.4,3.2078]
[1757052452720,0.6392,4341.5,4341.4,3.2078]
[1757052454613,0.3088,4341.9,4341.4,3.4418]
[1757052454818,0.4259,4342.0,4341.4,3.4418]
[1757052455122,0.4259,4342.0,4341.9,3.2078]
[1757052455318,0.6392,4342.0,4341.9,3.2078]
[1757052456019,0.8327,4342.0,4341.9,3.2078]
[1757052459816,0.4259,4342.0,4341.9,3.52033727]
[1757052460219,1.29065175,4342.0,4341.9,3.52033727]
[1757052460432,0.4259,4342.0,4341.9,3.52033727]
[1757052462827,0.8327,4342.0,4341.9,3.52033727]
[1757052463531,1.06301001,4342.0,4341.9,0.31253727]
[1757052463721,5.71815175,4342.0,4341.9,0.31253727]
[1757052463923,0.7156,4341.4,4341.3,3.2078]
[1757052464132,1.36705175,4341.4,4341.3,3.2078]
[1757052464426,0.1171,4341.0,4340.9,0.645]
[1757052464624,1.48415175,4341.0,4340.9,0.645]
[1757052466329,1.48415175,4341.0,4340.8,3.2078]
[1757052466631,0.7156,4340.9,4340.8,3.2078]
[1757052468935,0.5221,4340.9,4340.8,3.6305]
[1757052469531,0.728,4340.9,4340.8,3.6305]
[1757052470331,0.728,4340.9,4340.8,3.9425]
[1757052470637,0.728,4340.9,4340.8,3.6305]
[1757052476029,0.728,4340.9,4340.8,3.93674786]
[1757052476230,0.728,4340.9,4340.8,4.24874786]
[1757052476438,0.5221,4340.9,4340.8,4.24874786]
[1757052477443,0.5221,4340.9,4340.8,1.04094786]
[1757052480442,0.728,4340.9,4340.8,0.72894786]
[1757052483140,0.3088,4340.9,4340.8,0.72894786]
[1757052483344,0.3088,4340.9,4340.8,1.04094786]
[1757052483943,0.5047,4340.9,4340.8,1.04094786]
[1757052484537,0.7106,4340.9,4340.8,1.04094786]
[1757052484738,0.7106,4340.9,4340.8,0.30624786]
[1757052485249,0.7121,4339.7,4339.6,0.20607]
[1757052485543,1.36355175,4339.7,4339.6,0.20607]
[1757052486846,1.36355175,4339.7,4339.6,0.00817]
[1757052487545,0.1172,4339.0,4338.9,0.1979]
[1757052487847,0.4018,4338.6,4338.5,3.6163]
[1757052488248,0.7121,4338.6,4338.5,3.6163]
[1757052488549,0.7121,4338.6,4337.6,40.8]
[1757052488550,0.1959,4338.2,4338.1,0.7205]
[1757052488743,1.36355175,4338.2,4338.1,0.1979]
[1757052489044,0.7121,4337.8,4337.7,3.6163]
[1757052489634,0.3103,4337.8,4337.7,3.9283]
[1757052490541,0.3103,4337.8,4337.7,3.6163]
[1757052490542,0.5062,4337.8,4337.7,3.6163]
[1757052490944,0.5062,4337.8,4337.7,3.9283]
[1757052491336,0.3103,4338.3,4337.7,3.9283]
[1757052491541,0.3103,4338.3,4338.2,0.7205]
[1757052491542,0.7402,4338.3,4338.2,0.7205]
[1757052492344,0.9461,4338.3,4338.2,0.4085]
[1757052492745,0.9461,4338.3,4337.7,3.2078]
[1757052492947,0.65145175,4337.8,4337.7,3.9283]
[1757052493142,0.65145175,4338.1,4338.0,0.1979]
[1757052493354,0.96175175,4338.1,4338.0,0.7205]
[1757052493650,1.15765175,4338.1,4338.0,0.7205]
[1757052494647,0.234,4338.3,4338.1,0.312]
[1757052494949,3.2078,4338.7,4338.6,0.7205]
[1757052494950,3.714,4338.7,4338.6,0.7205]
[1757052495344,3.2078,4338.7,4338.6,0.7205]
[1757052495547,0.1152,4338.8,4338.7,0.312]
[1757052495748,0.3103,4339.2,4338.7,0.7205]
[1757052495948,4.3121254,4339.3,4338.8,0.312]
[1757052496145,3.5181,4339.3,4339.2,0.7205]
[1757052497153,3.714,4339.3,4339.2,1.02137051]
[1757052497351,0.7121,4339.3,4339.2,1.02137051]
[1757052497553,0.7121,4339.3,4339.2,0.70937051]
[1757052498555,0.5062,4339.3,4339.2,0.99877051]
[1757052498850,0.7007,4339.3,4339.2,0.70937051]
[1757052499052,1.4947254,4339.3,4339.2,0.49877051]
[1757052504446,1.4947254,4339.3,4339.2,0.69877051]
[1757052506354,1.4947254,4339.3,4339.2,0.30087051]
[1757052506554,4.7025254,4339.3,4339.2,0.30087051]
[1757052506756,4.7025254,4339.3,4339.2,0.49447051]
[1757052508958,4.7025254,4339.3,4339.2,0.49449015]
[1757052511060,1.4947254,4339.3,4339.2,0.49449015]
[1757052512361,0.7007,4339.3,4339.2,0.69449015]
[1757052512558,0.7007,4339.3,4339.2,0.98389015]
[1757052514761,0.7007,4339.3,4339.2,0.98450333]
[1757052515462,0.7007,4339.3,4339.2,0.69510333]
[1757052516364,0.7007,4339.3,4339.2,0.49510333]
[1757052516565,0.7007,4339.3,4339.2,0.30150333]
[1757052517164,0.7007,4339.3,4339.2,0.49510333]
[1757052521863,0.7007,4339.3,4339.2,0.49553362]
[1757052522561,0.9347,4339.3,4339.2,0.49553362]
[1757052522963,0.9347,4339.3,4339.2,0.30193362]
[1757052526160,1.7287254,4339.3,4339.2,0.30193362]
[1757052527265,1.7287254,4339.3,4339.2,0.49553362]
[1757052528069,0.7007,4339.3,4339.2,0.98593362]
[1757052528274,0.5062,4339.3,4339.2,0.98593362]
[1757052528969,0.5062,4339.3,4339.2,0.98667463]
[1757052533676,0.7073,4339.3,4339.2,0.98667463]
[1757052534173,0.5062,4339.3,4339.2,0.98667463]
[1757052534477,0.4189,4339.5,4339.4,0.2935]
[1757052534670,0.3037,4339.5,4339.4,0.98697463]
[1757052537367,0.5141,4339.5,4339.4,0.98697463]
[1757052537569,0.6383,4339.5,4339.4,0.98697463]
[1757052537967,0.8394,4339.5,4339.4,0.98697463]
[1757052538874,0.8394,4339.5,4339.4,0.30267463]
[1757052542883,0.8394,4339.5,4339.4,0.49657463]
[1757052544386,0.1152,4339.7,4339.6,0.6843]
[1757052544583,3.325,4340.0,4339.6,0.69347463]
[1757052544784,0.3276,4340.0,4339.9,0.6843]
[1757052545077,0.5357,4340.0,4339.9,0.69347463]
[1757052545282,0.8394,4340.0,4339.9,0.69347463]
[1757052546279,0.8394,4340.0,4339.9,0.49657463]
[1757052546987,0.8394,4340.0,4339.9,0.69347463]
[1757052549892,0.8394,4340.0,4339.9,0.30267463]
[1757052550286,1.0724,4340.0,4339.9,0.30267463]
[1757052552696,0.7687,4340.0,4339.9,0.3058028]
[1757052553296,1.0724,4340.0,4339.9,0.3058028]
[1757052553898,1.70210629,4340.0,4339.9,0.3058028]
[1757052556200,1.70210629,4340.0,4339.9,0.30587306]
[1757052557594,0.1242,4339.0,4338.9,3.03752694]
[1757052557798,1.49140571,4339.0,4338.9,3.03752694]
[1757052557992,1.49140571,4339.0,4338.9,0.1939]
[1757052562512,1.49140571,4339.0,4338.9,0.6999]
[1757052565211,1.49140571,4339.0,4338.9,0.4055]
[1757052566218,1.49140571,4339.0,4338.9,0.1939]
[1757052567415,0.1201,4338.5,4338.4,3.2078]
[1757052567713,1.47290571,4338.5,4338.4,3.4107]
[1757052568913,0.8209,4338.5,4338.4,3.6223]
[1757052569117,0.233,4338.9,4338.5,0.4209]
[1757052569316,0.9338,4338.9,4338.8,0.7089]
[1757052569513,1.58580571,4338.9,4338.8,0.7109559]
[1757052570314,1.35280571,4338.9,4338.8,0.7109559]
[1757052570511,1.58580571,4338.9,4338.8,0.7109559]
[1757052570818,1.35280571,4338.9,4338.8,0.7109559]
[1757052571118,0.9338,4338.9,4338.8,1.0053559]
[1757052573120,0.9338,4338.9,4338.8,0.2964559]
[1757052573717,0.9338,4338.9,4338.8,0.4993559]
[1757052573917,0.9338,4338.9,4338.8,0.7937559]
[1757052574818,0.9338,4338.9,4338.8,0.4993559]
[1757052575321,0.9338,4338.9,4338.8,1.0053559]
[1757052576523,0.9338,4338.9,4338.8,0.4993559]
[1757052578622,0.9338,4338.9,4338.8,1.0053559]
[1757052580319,0.5032,4338.9,4338.8,1.0053559]
[1757052580518,0.3005,4338.9,4338.8,1.0053559]
[1757052580719,0.5032,4338.9,4338.8,1.0053559]
[1757052582928,0.5032,4338.9,4338.8,1.00565668]
[1757052583723,0.7008,4338.9,4338.8,1.00565668]
[1757052583932,0.7008,4338.9,4338.8,0.49965668]
[1757052584427,2.1646,4339.0,4338.8,4.52975668]
[1757052584627,2.1646,4339.0,4338.9,3.73502668]
[1757052584931,2.1646,4339.0,4338.9,7.73502668]
[1757052585333,0.4247,4340.0,4339.0,0.23047]
[1757052585528,0.1201,4340.5,4339.9,0.65200571]
[1757052585826,0.3005,4340.9,4340.3,0.65200571]
[1757052586030,0.3005,4340.9,4340.8,3.2078]
[1757052586230,0.3005,4340.9,4340.8,3.73755668]
[1757052586424,0.3005,4341.3,4340.8,3.73755668]
[1757052586620,0.3005,4341.3,4340.9,0.29675668]
[1757052586830,0.1201,4341.5,4340.9,0.29675668]
[1757052587037,0.3005,4341.4,4341.1,0.65200571]
[1757052587229,0.3005,4341.4,4341.2,0.52975668]
[1757052587428,0.3005,4341.4,4341.3,0.29675668]
[1757052588025,0.3005,4341.4,4341.3,0.52975668]
[1757052590042,0.2097,4339.9,4339.8,3.2078]
[1757052590230,0.2097,4339.8,4339.3,3.2078]
[1757052590434,0.1228,4340.0,4339.5,0.65200571]
[1757052590738,0.3101,4339.9,4339.6,0.235]
[1757052591133,0.3325,4340.0,4339.6,0.235]
[1757052591339,0.3101,4339.9,4339.6,0.235]
[1757052591836,0.5198,4339.9,4339.6,0.235]
[1757052592233,0.2097,4339.9,4339.6,0.235]
[1757052592437,0.3101,4339.9,4339.6,0.235]
[1757052592634,0.3101,4339.9,4339.7,0.235]
[1757052593033,0.5198,4339.9,4339.7,0.235]
[1757052593233,0.3101,4339.8,4339.7,0.235]
[1757052593634,0.5198,4339.8,4339.7,0.235]
[1757052594235,0.7208,4339.8,4339.7,0.235]
[1757052596238,0.5198,4339.8,4339.7,0.235]
[1757052599847,0.7208,4338.8,4338.7,3.2078]
[1757052600050,0.5198,4338.8,4338.7,3.4428]
[1757052600252,0.3101,4338.8,4338.7,3.4428]
[1757052600446,0.5198,4338.8,4338.7,3.4428]
[1757052602054,0.5198,4338.8,4338.7,3.72830049]
[1757052602247,0.7208,4338.8,4338.7,3.72830049]
[1757052603252,1.37280571,4338.8,4338.7,0.28550049]
[1757052603547,0.7208,4338.8,4338.7,0.28550049]
[1757052603940,0.7208,4338.8,4338.7,0.52150049]
[1757052608954,0.5198,4338.8,4338.7,0.52150049]
[1757052609351,0.4329,4339.0,4338.7,0.52150049]
[1757052609565,0.7208,4338.9,4338.8,0.28550049]
[1757052609757,0.7208,4338.9,4338.8,3.72830049]
[1757052610350,0.7208,4338.9,4338.8,0.28550049]
[1757052615663,5.06270571,4338.9,4338.2,3.2078]
[1757052615961,0.7208,4338.4,4338.3,0.28603344]
[1757052616159,1.37280571,4338.4,4338.3,0.28603344]
[1757052616561,0.3101,4338.3,4337.6,3.2078]
[1757052617164,0.65200571,4338.4,4337.6,3.2078]
[1757052617359,0.7208,4338.1,4338.0,0.1956]
[1757052618458,0.7208,4338.1,4337.6,3.2078]
[1757052618659,0.2004,4337.7,4337.6,3.6165]
[1757052618861,0.5041,4337.7,4337.6,3.6165]
[1757052619467,0.6995,4337.7,4337.6,3.2078]
[1757052619762,0.1269,4338.0,4337.1,3.2078]
[1757052619763,0.6995,4337.2,4337.1,3.2078]
[1757052620964,0.6995,4337.2,4336.6,0.236]
[1757052621354,0.6995,4337.2,4337.1,0.2058]
[1757052624470,0.6995,4337.2,4337.1,0.8748]
[1757052625471,0.6995,4337.2,4337.1,0.6447]
[1757052628071,0.6995,4337.2,4337.1,0.236]
[1757052628475,0.6995,4337.2,4337.1,0.4418]
[1757052633670,0.6995,4337.2,4337.1,0.6447]
[1757052636071,0.3037,4337.5,4337.4,0.4087]
[1757052636271,0.3037,4337.5,4337.4,4.0826]
[1757052636574,3.8264,4337.5,4337.4,3.6165]
[1757052636877,3.8264,4337.5,4337.4,3.6496]
[1757052637082,3.8264,4337.5,4337.4,3.4438]
[1757052637575,3.8264,4337.5,4337.4,3.2078]
[1757052637776,3.8264,4337.5,4337.4,3.4438]
[1757052639284,3.8264,4337.5,4336.7,3.2078]
[1757052639586,0.6995,4336.8,4336.7,3.6165]
[1757052639770,0.6995,4336.8,4336.7,3.8525]
[1757052640381,0.3037,4336.8,4336.7,4.87694394]
[1757052640573,0.6995,4337.4,4337.3,0.2058]
[1757052643284,0.8264,4337.0,4336.9,0.2058]
[1757052643473,0.8264,4337.0,4336.7,3.2078]
[1757052643778,0.6995,4336.9,4336.8,0.236]
[1757052644379,0.6995,4336.9,4336.8,0.4418]
[1757052644973,0.6995,4336.9,4336.8,0.6447]
[1757052645382,0.6995,4336.9,4336.8,0.4087]
[1757052645582,0.6995,4336.9,4336.8,0.6447]
[1757052649475,0.6995,4336.9,4336.7,3.2078]
[1757052649679,0.3136,4336.8,4336.7,3.2078]
[1757052649982,0.7321,4336.8,4336.7,3.4428]
[1757052650179,0.7321,4336.8,4336.7,0.235]
[1757052651887,0.1269,4337.0,4336.2,3.2078]
[1757052652086,0.4185,4336.8,4336.7,0.235]
[1757052652286,0.7321,4336.8,4336.7,0.235]
[1757052656192,0.7321,4336.8,4336.7,0.6513]
[1757052656692,0.7321,4336.8,4336.7,0.4433]
[1757052658592,0.1269,4337.0,4336.8,0.23]
[1757052658593,0.3136,4336.9,4336.8,0.23]
[1757052658793,0.3136,4336.9,4336.8,0.6463]
[1757052658794,0.5225,4336.9,4336.8,0.6463]
[1757052658984,0.5225,4336.9,4336.8,0.4163]
[1757052659185,0.7321,4336.9,4336.8,0.4163]
[1757052662791,0.7321,4336.9,4336.7,3.4428]
[1757052662792,0.3136,4336.8,4336.7,3.4428]
[1757052663097,0.7321,4336.8,4336.7,3.6511]
[1757052665201,0.7321,4336.8,4336.7,3.8591]
[1757052666294,0.7321,4336.8,4336.7,4.0891]
[1757052666499,0.5225,4336.8,4336.7,4.0891]
[1757052672199,0.3136,4336.8,4336.7,4.0891]
[1757052674007,0.3136,4336.8,4336.7,0.8813]
[1757052676008,0.5225,4336.8,4336.7,0.8813]
[1757052680611,3.1269,4337.5,4336.8,0.2297]
[1757052680907,3.53,4337.5,4337.4,0.4055]
[1757052681106,4.1826109,4337.5,4337.3,0.234]
[1757052681308,0.7092,4337.4,4337.3,0.234]
[1757052681507,3.7092,4337.4,4337.3,0.234]
[1757052684414,3.7092,4337.4,4336.7,0.2297]
[1757052684614,0.8328,4337.0,4336.9,0.1973]
[1757052685714,0.8328,4337.0,4336.9,0.4055]
[1757052690016,0.3061,4337.0,4336.9,0.6352]
[1757052690314,0.511,4337.0,4336.9,0.6352]
[1757052690514,0.6346,4337.0,4336.9,0.6352]
[1757052691916,0.3061,4337.0,4336.9,1.05018]
[1757052693514,0.511,4337.0,4336.9,1.05018]
[1757052693917,0.6346,4337.0,4336.9,1.05018]
[1757052696112,0.8328,4337.0,4336.9,0.82048]
[1757052696311,0.8328,4337.0,4336.9,0.4055]
[1757052696714,0.8328,4337.0,4336.9,0.82048]
[1757052697419,0.8328,4337.0,4336.9,0.4055]
[1757052698326,0.8328,4337.0,4336.9,0.6395]
[1757052699318,0.6346,4337.0,4336.9,1.28418]
[1757052699716,3.2049,4337.4,4337.3,0.4055]
[1757052699916,3.2049,4337.4,4337.3,0.6395]
[1757052700116,3.4031,4337.4,4337.3,0.6395]
[1757052700318,3.7092,4337.4,4337.3,0.6395]
[1757052701219,3.7092,4337.4,4337.3,0.4313]
[1757052701918,3.7092,4337.4,4337.3,0.1973]
[1757052702122,3.7092,4337.4,4337.3,0.4313]
[1757052703025,3.7092,4337.4,4337.3,0.234]
[1757052706718,3.7092,4337.4,4337.3,0.6395]
[1757052706719,3.3061,4337.4,4337.3,0.6395]
[1757052706923,3.511,4337.4,4337.3,0.6395]
[1757052707131,3.511,4337.4,4337.3,0.8692]
[1757052707426,3.7092,4337.4,4337.3,0.6395]
[1757052711230,3.7092,4337.4,4337.3,0.4313]
[1757052717737,3.7092,4337.4,4337.3,0.234]
[1757052719834,3.7092,4337.4,4337.3,0.6244]
[1757052720638,3.7092,4337.4,4337.3,1.9218509]
[1757052720835,0.6526109,4338.8,4337.4,0.295]
[1757052721139,0.3953,4338.2,4338.1,0.4896]
[1757052721341,0.3953,4338.2,4338.1,0.7226]
[1757052723038,0.6859,4338.2,4338.1,0.7226]
[1757052724833,0.6859,4338.2,4338.1,0.9184]
[1757052726742,0.6859,4338.2,4338.1,0.7226]
[1757052729246,0.6859,4338.2,4338.1,0.9184]
[1757052729445,0.3953,4338.2,4338.1,0.9184]
[1757052734552,0.1987,4338.2,4338.1,0.9184]
[1757052742946,0.3943,4338.2,4338.1,0.9184]
[1757052746243,0.6924,4338.2,4338.1,0.295]
[1757052746448,4.62481,4338.2,4337.9,0.233]
[1757052746649,0.3938,4338.0,4337.9,0.5248]
[1757052746951,0.6919,4338.0,4337.9,0.5248]
[1757052748250,0.3938,4338.0,4337.9,0.9478]
[1757052748453,0.6919,4338.0,4337.9,0.9478]
[1757052748757,0.3938,4338.0,4337.9,0.9478]
[1757052749157,0.6919,4338.0,4337.9,0.9478]
[1757052749653,0.1982,4338.0,4337.9,0.9478]
[1757052750255,0.6919,4338.0,4337.9,0.9478]
[1757052759666,0.3938,4338.0,4337.9,0.9478]
[1757052760660,0.1982,4338.0,4337.9,0.9478]
[1757052761363,0.2981,4338.8,4338.1,0.2918]
[1757052761558,0.6919,4338.8,4338.7,0.2144]
[1757052761860,0.9224,4338.8,4338.7,0.5062]
[1757052762060,0.9224,4338.8,4338.2,0.233]
[1757052762256,0.2981,4338.3,4338.2,0.233]
[1757052762460,0.6919,4338.3,4338.2,0.4474]
[1757052762653,0.3938,4338.3,4338.2,0.656]
[1757052762854,0.3938,4338.3,4338.2,0.9478]
[1757052763659,0.6919,4338.3,4338.2,0.9478]
[1757052764362,0.3938,4338.3,4338.2,0.9478]
[1757052765862,0.6919,4338.3,4338.2,0.5062]
[1757052766057,0.6919,4337.7,4337.6,3.2078]
[1757052766265,1.4860728,4337.7,4337.6,3.2078]
[1757052767561,1.4860728,4337.7,4337.6,3.4996]
[1757052768563,1.4860728,4337.7,4337.6,0.2918]
[1757052769468,1.4860728,4337.7,4337.2,3.2078]
[1757052769670,0.2903,4337.6,4337.2,3.2078]
[1757052769868,0.6912,4337.3,4337.2,3.4102]
[1757052770068,0.6912,4337.3,4337.2,3.6137]
[1757052770263,1.4853728,4337.3,4337.2,3.9094]
[1757052770464,1.4853728,4337.3,4337.2,3.5035]
[1757052770969,1.4853728,4337.3,4337.2,3.78920749]
[1757052771366,1.4853728,4337.3,4337.2,3.99160749]
[1757052772459,1.4853728,4337.3,4337.2,3.99149184]
[1757052776675,1.4853728,4337.3,4337.2,4.19499184]
[1757052778880,1.1950728,4337.3,4337.2,4.19499184]
[1757052780178,1.1950728,4337.3,4337.2,0.98719184]
[1757052783382,1.4853728,4337.3,4337.2,0.98719184]
[1757052783882,1.1950728,4337.3,4337.2,0.98719184]
[1757052784382,4.0019728,4337.7,4337.5,0.1209]
[1757052784683,4.2052728,4337.7,4337.6,0.98719184]
[1757052784878,4.4028728,4337.7,4337.6,0.98719184]
[1757052785485,4.2052728,4337.7,4337.6,0.98719184]
[1757052787586,4.6931728,4337.7,4337.6,0.98719184]
[1757052789790,4.6931728,4337.7,4337.6,0.78369184]
[1757052790089,4.6931728,4337.7,4337.6,0.58129184]
[1757052790487,4.6931728,4337.7,4337.6,0.28559184]
[1757052790687,4.6931728,4337.7,4337.6,0.58129184]
[1757052793086,4.6931728,4337.7,4337.6,0.78369184]
[1757052794486,4.6931728,4337.7,4337.6,0.28559184]
[1757052795295,4.6931728,4337.7,4337.6,0.58129184]
[1757052798305,4.6931728,4337.7,4337.6,0.28559184]
[1757052798503,0.0528,4337.1,4337.0,0.4393]
[1757052798807,4.2877728,4337.1,4337.0,0.4393]
[1757052801503,4.14649546,4337.1,4337.0,0.4393]
[1757052803302,3.2078,4337.1,4337.0,0.8488]
[1757052805302,3.86069546,4337.1,4337.0,0.8488]
[1757052806509,3.87939546,4337.1,4337.0,0.8488]
[1757052807109,3.89809546,4337.1,4337.0,0.8488]
[1757052807298,0.69029546,4337.1,4337.0,0.8488]
[1757052809808,0.65289546,4337.1,4337.0,0.8488]
[1757052810004,0.0374,4337.2,4337.1,0.5239]
[1757052810205,0.69029546,4337.2,4337.1,0.5239]
[1757052811608,0.69029546,4337.2,4337.1,0.7244]
[1757052812004,0.67159546,4337.2,4337.1,0.7244]
[1757052819111,0.233,4337.6,4337.1,0.7244]
[1757052819311,0.2517,4337.6,4337.5,0.8488]
[1757052819708,0.2704,4337.6,4337.5,0.8488]
[1757052820007,0.0374,4337.6,4337.5,0.8488]
[1757052820217,0.2704,4337.6,4337.5,0.8488]
[1757052820514,0.92329546,4337.6,4337.5,0.8488]
[1757052821718,0.92329546,4337.6,4337.0,0.1244]
[1757052822020,0.0374,4337.2,4337.1,0.5239]
[1757052822412,0.0374,4337.2,4337.1,0.7244]
[1757052823015,0.69029546,4337.2,4337.1,0.7244]
[1757052824515,0.0117,4337.1,4337.0,0.1244]
[1757052824722,0.0374,4337.1,4337.0,0.6483]
[1757052826820,0.2821,4337.1,4337.0,0.4393]
[1757052830420,4.90477893,4337.1,4336.5,0.1151]
[1757052830626,0.0428,4336.7,4336.6,0.525]
[1757052830818,0.2758,4336.7,4336.6,0.525]
[1757052831524,0.2758,4336.7,4336.6,0.7231]
[1757052831720,0.92869546,4336.7,4336.6,0.7231]
[1757052839330,0.65289546,4336.7,4336.6,0.7231]
[1757052839530,0.88589546,4336.7,4336.6,0.7231]
[1757052840525,0.65289546,4336.7,4336.6,0.7231]
[1757052842535,3.2078,4337.2,4336.6,0.7231]
[1757052842536,0.233,4336.9,4336.7,0.7231]
[1757052842736,0.65289546,4336.8,4336.7,0.7231]
[1757052843533,0.69569546,4336.8,4336.7,0.7231]
[1757052844332,0.2544,4336.8,4336.7,0.7231]